[Event "December 5 Early 2023"]
[Site "https://www.chess.com"]
[Date "2023.12.05"]
[Round "5"]
[White "Chemin, Justo Reinaldo"]
[Black "Azar, Sebastien"]
[Result "0-1"]
[Board "188"]
[TimeControl "180+1"]
[WhiteFideId "2101580"]
[BlackFideId "2640198"]
[WhiteElo "2216"]
[BlackElo "2418"]
[WhiteTeam "BRA"]
[BlackTeam "CAN"]
[WhiteClock "0:00:01"]
[BlackClock "0:00:14"]

1. e4 {[%clk 0:03:00]}  c5 {[%clk 0:02:55]} 2. Nf3 {[%clk 0:02:56]}  d6 {[%clk 0:02:55]} 3. d4 {[%clk 0:02:56]}  cxd4 {[%clk 0:02:56]} 4. Nxd4 {[%clk 0:02:56]}  Nf6 {[%clk 0:02:56]} 5. Nc3 {[%clk 0:02:56]}  Nc6 {[%clk 0:02:57]} 6. Be3 {[%clk 0:02:56]}  Ng4 {[%clk 0:02:56]} 7. Bb5 {[%clk 0:02:33]}  Nxe3 {[%clk 0:02:54]} 8. Nxc6 {[%clk 0:02:21]}  Nxd1 {[%clk 0:02:54]} 9. Nxd8+ {[%clk 0:02:21]}  Kxd8 {[%clk 0:02:54]} 10. Rxd1 {[%clk 0:02:20]}  e6 {[%clk 0:02:54]} 11. O-O {[%clk 0:02:18]}  Kc7 {[%clk 0:02:53]} 12. Be2 {[%clk 0:02:16]}  a6 {[%clk 0:02:53]} 13. a4 {[%clk 0:02:14]}  b6 {[%clk 0:02:52]} 14. f4 {[%clk 0:02:04]}  Bb7 {[%clk 0:02:51]} 15. Bf3 {[%clk 0:02:04]}  Be7 {[%clk 0:02:50]} 16. e5 {[%clk 0:01:57]}  Bxf3 {[%clk 0:02:48]} 17. Rxf3 {[%clk 0:01:50]}  Rad8 {[%clk 0:02:46]} 18. Rfd3 {[%clk 0:01:46]}  dxe5 {[%clk 0:02:41]} 19. fxe5 {[%clk 0:01:45]}  Bc5+ {[%clk 0:02:37]} 20. Kf1 {[%clk 0:01:44]}  Rxd3 {[%clk 0:02:30]} 21. Rxd3 {[%clk 0:01:39]}  Kc6 {[%clk 0:02:29]} 22. Ne4 {[%clk 0:01:37]}  Be7 {[%clk 0:02:23]} 23. Ke2 {[%clk 0:01:28]}  f5 {[%clk 0:02:20]} 24. exf6 {[%clk 0:01:26]}  gxf6 {[%clk 0:02:20]} 25. Rc3+ {[%clk 0:01:18]}  Kd7 {[%clk 0:02:10]} 26. Rb3 {[%clk 0:01:16]}  Kc7 {[%clk 0:02:05]} 27. Rc3+ {[%clk 0:01:15]}  Kd7 {[%clk 0:01:55]} 28. Rd3+ {[%clk 0:01:15]}  Ke8 {[%clk 0:01:42]} 29. Nd6+ {[%clk 0:01:11]}  Kf8 {[%clk 0:01:35]} 30. Nc4 {[%clk 0:01:09]}  b5 {[%clk 0:01:33]} 31. axb5 {[%clk 0:01:08]}  axb5 {[%clk 0:01:34]} 32. Nd6 {[%clk 0:01:08]}  Rg8 {[%clk 0:01:33]} 33. g3 {[%clk 0:01:06]}  Rg5 {[%clk 0:01:32]} 34. Ne4 {[%clk 0:01:00]}  Re5 {[%clk 0:01:26]} 35. Kf3 {[%clk 0:01:01]}  Rf5+ {[%clk 0:01:19]} 36. Ke2 {[%clk 0:00:59]}  Rh5 {[%clk 0:01:16]} 37. h4 {[%clk 0:00:58]}  Re5 {[%clk 0:01:14]} 38. Kf3 {[%clk 0:00:58]}  f5 {[%clk 0:01:10]} 39. Nd6 {[%clk 0:00:49]}  Rc5 {[%clk 0:01:01]} 40. c3 {[%clk 0:00:48]}  Kg7 {[%clk 0:00:48]} 41. Nb7 {[%clk 0:00:45]}  Rc7 {[%clk 0:00:47]} 42. Na5 {[%clk 0:00:45]}  Kf6 {[%clk 0:00:43]} 43. Nb3 {[%clk 0:00:44]}  e5 {[%clk 0:00:42]} 44. Rd5 {[%clk 0:00:43]}  Rb7 {[%clk 0:00:37]} 45. Nc5 {[%clk 0:00:33]}  Rc7 {[%clk 0:00:33]} 46. Nb3 {[%clk 0:00:29]}  b4 {[%clk 0:00:30]} 47. cxb4 {[%clk 0:00:24]}  Bxb4 {[%clk 0:00:28]} 48. Rb5 {[%clk 0:00:25]}  e4+ {[%clk 0:00:25]} 49. Ke3 {[%clk 0:00:21]}  Bd6 {[%clk 0:00:24]} 50. Rb6 {[%clk 0:00:20]}  Ke5 {[%clk 0:00:22]} 51. Rb5+ {[%clk 0:00:18]}  Kf6 {[%clk 0:00:21]} 52. Rb6 {[%clk 0:00:18]}  Ke7 {[%clk 0:00:21]} 53. Nd4 {[%clk 0:00:13]}  Rc5 {[%clk 0:00:18]} 54. Rb7+ {[%clk 0:00:09]}  Kf6 {[%clk 0:00:16]} 55. Rb6 {[%clk 0:00:09]}  Ke5 {[%clk 0:00:13]} 56. Nxf5 {[%clk 0:00:07]}  Kxf5 {[%clk 0:00:10]} 57. Rxd6 {[%clk 0:00:07]}  Rb5 {[%clk 0:00:10]} 58. Rd2 {[%clk 0:00:07]}  Rb3+ {[%clk 0:00:10]} 59. Kf2 {[%clk 0:00:07]}  e3+ {[%clk 0:00:10]} 60. Ke2 {[%clk 0:00:07]}  exd2 {[%clk 0:00:11]} 61. Kxd2 {[%clk 0:00:07]}  Rxb2+ {[%clk 0:00:11]} 62. Ke3 {[%clk 0:00:08]}  Rg2 {[%clk 0:00:12]} 63. Kf3 {[%clk 0:00:08]}  Rb2 {[%clk 0:00:12]} 64. g4+ {[%clk 0:00:08]}  Kg6 {[%clk 0:00:13]} 65. Kf4 {[%clk 0:00:07]}  Rb3 {[%clk 0:00:14]} 66. h5+ {[%clk 0:00:06]}  Kg7 {[%clk 0:00:13]} 67. g5 {[%clk 0:00:07]}  Rb5 {[%clk 0:00:13]} 68. Kg4 {[%clk 0:00:06]}  h6 {[%clk 0:00:13]} 69. g6 {[%clk 0:00:06]}  Rg5+ {[%clk 0:00:13]} 70. Kh4 {[%clk 0:00:06]}  Kf6 {[%clk 0:00:14]} 71. g7 {[%clk 0:00:01]}  Rxg7 {[%clk 0:00:14]} 0-1

[Event "December 5 Early 2023"]
[Site "https://www.chess.com"]
[Date "2023.12.05"]
[Round "5"]
[White "Mushini Ajay"]
[Black "Pertinez Soria, Juan Luis"]
[Result "1-0"]
[Board "191"]
[TimeControl "180+1"]
[WhiteFideId "35066188"]
[BlackFideId "2225620"]
[WhiteElo "2407"]
[BlackElo "2162"]
[WhiteTeam "IND"]
[BlackTeam "ESP"]
[WhiteClock "0:01:26"]
[BlackClock "0:01:02"]

1. e4 {[%clk 0:03:00]}  e6 {[%clk 0:02:56]} 2. d4 {[%clk 0:03:00]}  d5 {[%clk 0:02:56]} 3. Nc3 {[%clk 0:03:00]}  Nf6 {[%clk 0:02:55]} 4. e5 {[%clk 0:03:00]}  Nfd7 {[%clk 0:02:54]} 5. f4 {[%clk 0:03:00]}  c5 {[%clk 0:02:55]} 6. Nf3 {[%clk 0:03:00]}  Nc6 {[%clk 0:02:55]} 7. Be3 {[%clk 0:02:59]}  a6 {[%clk 0:02:53]} 8. Qd2 {[%clk 0:02:59]}  b5 {[%clk 0:02:50]} 9. Be2 {[%clk 0:02:57]}  Bb7 {[%clk 0:02:44]} 10. dxc5 {[%clk 0:02:56]}  Bxc5 {[%clk 0:02:43]} 11. Bxc5 {[%clk 0:02:51]}  Nxc5 {[%clk 0:02:42]} 12. Bd3 {[%clk 0:02:51]}  Na4 {[%clk 0:02:41]} 13. Nxa4 {[%clk 0:02:50]}  bxa4 {[%clk 0:02:41]} 14. O-O {[%clk 0:02:47]}  Qb6+ {[%clk 0:02:42]} 15. Kh1 {[%clk 0:02:46]}  O-O {[%clk 0:02:34]} 16. Bxh7+ {[%clk 0:02:36]}  Kxh7 {[%clk 0:02:32]} 17. Ng5+ {[%clk 0:02:36]}  Kg8 {[%clk 0:02:32]} 18. Qd3 {[%clk 0:02:35]}  f5 {[%clk 0:02:07]} 19. exf6 {[%clk 0:02:23]}  Rxf6 {[%clk 0:02:05]} 20. Qh7+ {[%clk 0:02:22]}  Kf8 {[%clk 0:02:05]} 21. Qh8+ {[%clk 0:02:21]}  Ke7 {[%clk 0:02:03]} 22. Qxg7+ {[%clk 0:02:21]}  Kd6 {[%clk 0:02:03]} 23. Qxf6 {[%clk 0:02:16]}  Re8 {[%clk 0:01:58]} 24. Rae1 {[%clk 0:02:09]}  Bc8 {[%clk 0:01:44]} 25. Nxe6 {[%clk 0:01:57]}  Rxe6 {[%clk 0:01:31]} 26. Rxe6+ {[%clk 0:01:54]}  Bxe6 {[%clk 0:01:31]} 27. f5 {[%clk 0:01:51]}  a3 {[%clk 0:01:25]} 28. Qxe6+ {[%clk 0:01:46]}  Kc5 {[%clk 0:01:25]} 29. bxa3 {[%clk 0:01:42]}  Qb5 {[%clk 0:01:23]} 30. Re1 {[%clk 0:01:33]}  Nd4 {[%clk 0:01:02]} 31. Qe3 {[%clk 0:01:26]} 1-0

[Event "December 5 Early 2023"]
[Site "https://www.chess.com"]
[Date "2023.12.05"]
[Round "5"]
[White "Matthes, Aaron"]
[Black "Travadon, Loic"]
[Result "1-0"]
[Board "192"]
[TimeControl "180+1"]
[WhiteFideId "16227310"]
[BlackFideId "26092131"]
[WhiteElo "2406"]
[BlackElo "2161"]
[WhiteTeam "GER"]
[BlackTeam "FRA"]
[WhiteClock "0:01:18"]
[BlackClock "0:00:19"]

1. Nf3 {[%clk 0:03:00]}  d5 {[%clk 0:02:55]} 2. g3 {[%clk 0:03:01]}  e6 {[%clk 0:02:50]} 3. Bg2 {[%clk 0:03:02]}  Nf6 {[%clk 0:02:51]} 4. O-O {[%clk 0:03:02]}  b5 {[%clk 0:02:51]} 5. d4 {[%clk 0:03:03]}  Bb7 {[%clk 0:02:51]} 6. a4 {[%clk 0:03:03]}  c6 {[%clk 0:02:50]} 7. b3 {[%clk 0:02:58]}  Nbd7 {[%clk 0:02:48]} 8. Nbd2 {[%clk 0:02:51]}  Bd6 {[%clk 0:02:45]} 9. Bb2 {[%clk 0:02:48]}  O-O {[%clk 0:02:44]} 10. Re1 {[%clk 0:02:41]}  Ne4 {[%clk 0:02:42]} 11. Nxe4 {[%clk 0:02:40]}  dxe4 {[%clk 0:02:43]} 12. Nd2 {[%clk 0:02:39]}  f5 {[%clk 0:02:19]} 13. c4 {[%clk 0:02:34]}  bxc4 {[%clk 0:02:11]} 14. Nxc4 {[%clk 0:02:32]}  Bc7 {[%clk 0:01:30]} 15. b4 {[%clk 0:02:31]}  Nb6 {[%clk 0:01:22]} 16. Na5 {[%clk 0:02:28]}  Qc8 {[%clk 0:01:13]} 17. Qb3 {[%clk 0:02:26]}  Nd5 {[%clk 0:01:10]} 18. Nc4 {[%clk 0:02:23]}  a5 {[%clk 0:01:06]} 19. b5 {[%clk 0:02:18]}  cxb5 {[%clk 0:01:07]} 20. axb5 {[%clk 0:02:18]}  Qd8 {[%clk 0:00:58]} 21. Ba3 {[%clk 0:02:10]}  Rf7 {[%clk 0:00:55]} 22. Rec1 {[%clk 0:02:06]}  Bb6 {[%clk 0:00:55]} 23. e3 {[%clk 0:01:58]}  a4 {[%clk 0:00:52]} 24. Qb2 {[%clk 0:01:57]}  Rc8 {[%clk 0:00:51]} 25. Nd6 {[%clk 0:01:46]}  Rxc1+ {[%clk 0:00:48]} 26. Rxc1 {[%clk 0:01:47]}  Rd7 {[%clk 0:00:48]} 27. Nc4 {[%clk 0:01:43]}  Rf7 {[%clk 0:00:47]} 28. Bf1 {[%clk 0:01:37]}  g5 {[%clk 0:00:40]} 29. Ne5 {[%clk 0:01:24]}  Rc7 {[%clk 0:00:38]} 30. Bc4 {[%clk 0:01:20]}  Qc8 {[%clk 0:00:25]} 31. Bd6 {[%clk 0:01:18]}  Rg7 {[%clk 0:00:19]} 32. Bxd5 {[%clk 0:01:18]} 1-0

[Event "December 5 Early 2023"]
[Site "https://www.chess.com"]
[Date "2023.12.05"]
[Round "5"]
[White "Herman, Daniel"]
[Black "Ghosh, Chanchal Kumer"]
[Result "1-0"]
[Board "193"]
[TimeControl "180+1"]
[WhiteFideId "30935008"]
[BlackFideId "10201858"]
[WhiteElo "2400"]
[BlackElo "2067"]
[WhiteTeam "USA"]
[BlackTeam "BAN"]
[WhiteClock "0:00:29"]
[BlackClock "0:00:00"]

1. e4 {[%clk 0:02:56]}  c5 {[%clk 0:02:59]} 2. Nf3 {[%clk 0:02:55]}  d6 {[%clk 0:03:00]} 3. d4 {[%clk 0:02:56]}  cxd4 {[%clk 0:03:00]} 4. Nxd4 {[%clk 0:02:57]}  Nf6 {[%clk 0:03:01]} 5. Nc3 {[%clk 0:02:56]}  a6 {[%clk 0:03:01]} 6. h3 {[%clk 0:02:57]}  e5 {[%clk 0:03:01]} 7. Nde2 {[%clk 0:02:57]}  b5 {[%clk 0:03:02]} 8. g4 {[%clk 0:02:57]}  h6 {[%clk 0:03:01]} 9. Ng3 {[%clk 0:02:46]}  Be7 {[%clk 0:02:53]} 10. Bg2 {[%clk 0:02:43]}  O-O {[%clk 0:02:39]} 11. Nf5 {[%clk 0:02:35]}  Bxf5 {[%clk 0:02:37]} 12. exf5 {[%clk 0:02:35]}  Ra7 {[%clk 0:02:36]} 13. h4 {[%clk 0:02:32]}  Nh7 {[%clk 0:02:09]} 14. g5 {[%clk 0:02:31]}  Nd7 {[%clk 0:01:58]} 15. gxh6 {[%clk 0:02:23]}  g6 {[%clk 0:01:50]} 16. fxg6 {[%clk 0:02:12]}  fxg6 {[%clk 0:01:50]} 17. Qg4 {[%clk 0:02:12]}  Qe8 {[%clk 0:01:28]} 18. h5 {[%clk 0:01:51]}  g5 {[%clk 0:01:24]} 19. Qe6+ {[%clk 0:01:37]}  Kh8 {[%clk 0:01:23]} 20. Nd5 {[%clk 0:01:28]}  Nc5 {[%clk 0:01:22]} 21. Qg6 {[%clk 0:01:22]}  Qf7 {[%clk 0:01:15]} 22. Be3 {[%clk 0:01:14]}  Rb7 {[%clk 0:00:32]} 23. O-O-O {[%clk 0:00:58]}  b4 {[%clk 0:00:16]} 24. Nxe7 {[%clk 0:00:54]}  Rxe7 {[%clk 0:00:16]} 25. Bd5 {[%clk 0:00:53]}  Qf5 {[%clk 0:00:15]} 26. Qxd6 {[%clk 0:00:49]}  Rc8 {[%clk 0:00:07]} 27. Qxe7 {[%clk 0:00:35]}  Na4 {[%clk 0:00:00]} 28. Bb3 {[%clk 0:00:29]} 1-0

[Event "December 5 Early 2023"]
[Site "https://www.chess.com"]
[Date "2023.12.05"]
[Round "5"]
[White "Reinecke, Katharina"]
[Black "Marcziter, Dmitrii"]
[Result "0-1"]
[Board "195"]
[TimeControl "180+1"]
[WhiteFideId "12929727"]
[BlackFideId "13900765"]
[WhiteElo "2024"]
[BlackElo "2384"]
[WhiteTeam "GER"]
[BlackTeam "GER"]
[WhiteClock "0:00:00"]
[BlackClock "0:00:22"]

1. d4 {[%clk 0:03:00]}  Nf6 {[%clk 0:02:58]} 2. c4 {[%clk 0:02:59]}  g6 {[%clk 0:02:59]} 3. Nf3 {[%clk 0:02:58]}  Bg7 {[%clk 0:02:59]} 4. g3 {[%clk 0:02:59]}  O-O {[%clk 0:02:59]} 5. Bg2 {[%clk 0:02:59]}  d5 {[%clk 0:02:59]} 6. cxd5 {[%clk 0:02:57]}  Nxd5 {[%clk 0:02:59]} 7. O-O {[%clk 0:02:57]}  Nb6 {[%clk 0:02:59]} 8. e3 {[%clk 0:02:52]}  Nc6 {[%clk 0:02:57]} 9. Nh4 {[%clk 0:02:48]}  Bd7 {[%clk 0:02:51]} 10. f4 {[%clk 0:02:46]}  e6 {[%clk 0:02:37]} 11. Nc3 {[%clk 0:02:43]}  Rb8 {[%clk 0:02:34]} 12. a3 {[%clk 0:02:40]}  Na5 {[%clk 0:02:30]} 13. b4 {[%clk 0:02:31]}  Nac4 {[%clk 0:02:30]} 14. Nf3 {[%clk 0:02:26]}  a5 {[%clk 0:02:26]} 15. Ne5 {[%clk 0:02:22]}  Bc8 {[%clk 0:02:16]} 16. Qe2 {[%clk 0:02:10]}  Nxe5 {[%clk 0:02:11]} 17. fxe5 {[%clk 0:02:04]}  Ra8 {[%clk 0:02:10]} 18. Bd2 {[%clk 0:01:42]}  Nd5 {[%clk 0:02:02]} 19. Ne4 {[%clk 0:01:39]}  axb4 {[%clk 0:01:55]} 20. axb4 {[%clk 0:01:38]}  Bd7 {[%clk 0:01:54]} 21. Rxa8 {[%clk 0:01:20]}  Qxa8 {[%clk 0:01:53]} 22. Nf6+ {[%clk 0:01:20]}  Nxf6 {[%clk 0:01:43]} 23. exf6 {[%clk 0:01:20]}  Bh8 {[%clk 0:01:44]} 24. e4 {[%clk 0:01:15]}  e5 {[%clk 0:01:34]} 25. dxe5 {[%clk 0:01:13]}  Re8 {[%clk 0:01:34]} 26. Bc3 {[%clk 0:01:12]}  Qa7+ {[%clk 0:01:28]} 27. Kh1 {[%clk 0:01:11]}  Qa4 {[%clk 0:01:26]} 28. Ra1 {[%clk 0:00:58]}  Qb3 {[%clk 0:01:24]} 29. Qd2 {[%clk 0:00:53]}  Be6 {[%clk 0:01:17]} 30. Bf1 {[%clk 0:00:50]}  Bg4 {[%clk 0:01:06]} 31. Qb2 {[%clk 0:00:43]}  Qe6 {[%clk 0:01:03]} 32. Bg2 {[%clk 0:00:39]}  Rd8 {[%clk 0:01:01]} 33. Qc2 {[%clk 0:00:29]}  h5 {[%clk 0:00:59]} 34. Bb2 {[%clk 0:00:16]}  Qd7 {[%clk 0:00:50]} 35. Rc1 {[%clk 0:00:15]}  c6 {[%clk 0:00:47]} 36. Bf1 {[%clk 0:00:13]}  Bf3+ {[%clk 0:00:44]} 37. Bg2 {[%clk 0:00:13]}  Bg4 {[%clk 0:00:43]} 38. Rb1 {[%clk 0:00:12]}  h4 {[%clk 0:00:40]} 39. gxh4 {[%clk 0:00:12]}  Bh3 {[%clk 0:00:37]} 40. Rg1 {[%clk 0:00:11]}  Qg4 {[%clk 0:00:35]} 41. Bxh3 {[%clk 0:00:11]}  Qxh3 {[%clk 0:00:35]} 42. Qg2 {[%clk 0:00:09]}  Qxh4 {[%clk 0:00:34]} 43. Qg3 {[%clk 0:00:09]}  Qxe4+ {[%clk 0:00:34]} 44. Qg2 {[%clk 0:00:08]}  Qxb4 {[%clk 0:00:31]} 45. Ba1 {[%clk 0:00:08]}  Qh4 {[%clk 0:00:30]} 46. Rb1 {[%clk 0:00:07]}  Qh5 {[%clk 0:00:27]} 47. h3 {[%clk 0:00:07]}  Rd3 {[%clk 0:00:25]} 48. Kh2 {[%clk 0:00:06]}  Ra3 {[%clk 0:00:24]} 49. Rxb7 {[%clk 0:00:06]}  Rxa1 {[%clk 0:00:22]} 50. Rb8+ {[%clk 0:00:06]}  Kh7 {[%clk 0:00:22]} 51. Rb7 {[%clk 0:00:06]}  Qxe5+ {[%clk 0:00:21]} 52. Qg3 {[%clk 0:00:04]}  Ra2+ {[%clk 0:00:22]} 53. Kh1 {[%clk 0:00:00]}  Qxg3 {[%clk 0:00:22]} 0-1

[Event "December 5 Early 2023"]
[Site "https://www.chess.com"]
[Date "2023.12.05"]
[Round "5"]
[White "Mickiewicz, Piotr"]
[Black "Barath1308"]
[Result "0-1"]
[Board "197"]
[TimeControl "180+1"]
[WhiteFideId "1114891"]
[WhiteElo "2393"]
[BlackElo "2369"]
[WhiteTeam "POL"]
[WhiteClock "0:00:00"]
[BlackClock "0:00:15"]

1. e4 {[%clk 0:02:56]}  c5 {[%clk 0:02:57]} 2. Nf3 {[%clk 0:02:55]}  d6 {[%clk 0:02:58]} 3. d4 {[%clk 0:02:53]}  cxd4 {[%clk 0:02:57]} 4. Qxd4 {[%clk 0:02:53]}  Nc6 {[%clk 0:02:55]} 5. Bb5 {[%clk 0:02:54]}  Bd7 {[%clk 0:02:56]} 6. Qd3 {[%clk 0:02:53]}  a6 {[%clk 0:02:51]} 7. Bxc6 {[%clk 0:02:52]}  Bxc6 {[%clk 0:02:51]} 8. Nc3 {[%clk 0:02:51]}  e6 {[%clk 0:02:51]} 9. Bg5 {[%clk 0:02:51]}  Nf6 {[%clk 0:02:50]} 10. O-O-O {[%clk 0:02:49]}  Be7 {[%clk 0:02:48]} 11. Nd4 {[%clk 0:02:46]}  Rc8 {[%clk 0:02:46]} 12. f4 {[%clk 0:02:43]}  Qa5 {[%clk 0:02:43]} 13. Nb3 {[%clk 0:02:37]}  Qc7 {[%clk 0:02:35]} 14. Rhe1 {[%clk 0:02:13]}  O-O {[%clk 0:02:29]} 15. Bxf6 {[%clk 0:02:12]}  Bxf6 {[%clk 0:02:27]} 16. Qxd6 {[%clk 0:02:11]}  Qxd6 {[%clk 0:02:24]} 17. Rxd6 {[%clk 0:02:10]}  Bxc3 {[%clk 0:02:25]} 18. bxc3 {[%clk 0:02:09]}  Rfd8 {[%clk 0:02:14]} 19. Rxd8+ {[%clk 0:02:04]}  Rxd8 {[%clk 0:02:15]} 20. Re3 {[%clk 0:01:55]}  f6 {[%clk 0:02:10]} 21. Rd3 {[%clk 0:01:53]}  Rc8 {[%clk 0:02:09]} 22. Nd2 {[%clk 0:01:51]}  Kf7 {[%clk 0:02:07]} 23. c4 {[%clk 0:01:47]}  Ke7 {[%clk 0:02:03]} 24. g3 {[%clk 0:01:45]}  h6 {[%clk 0:02:01]} 25. Kb2 {[%clk 0:01:44]}  g5 {[%clk 0:01:59]} 26. Kb3 {[%clk 0:01:41]}  Rg8 {[%clk 0:01:55]} 27. fxg5 {[%clk 0:01:20]}  hxg5 {[%clk 0:01:51]} 28. h3 {[%clk 0:01:14]}  Rh8 {[%clk 0:01:49]} 29. g4 {[%clk 0:01:13]}  Rc8 {[%clk 0:01:35]} 30. Kb4 {[%clk 0:01:11]}  Be8 {[%clk 0:01:30]} 31. Nf3 {[%clk 0:01:00]}  e5 {[%clk 0:01:21]} 32. c5 {[%clk 0:00:52]}  Bc6 {[%clk 0:01:19]} 33. Nd2 {[%clk 0:00:49]}  Rh8 {[%clk 0:01:15]} 34. a4 {[%clk 0:00:41]}  Ra8 {[%clk 0:01:10]} 35. Ka5 {[%clk 0:00:38]}  Rc8 {[%clk 0:01:05]} 36. c3 {[%clk 0:00:22]}  Rh8 {[%clk 0:01:01]} 37. Kb6 {[%clk 0:00:19]}  Rc8 {[%clk 0:00:55]} 38. Re3 {[%clk 0:00:15]}  Rd8 {[%clk 0:00:53]} 39. Nc4 {[%clk 0:00:14]}  Rd1 {[%clk 0:00:49]} 40. Na5 {[%clk 0:00:14]}  Rb1+ {[%clk 0:00:47]} 41. Kc7 {[%clk 0:00:14]}  Bxa4 {[%clk 0:00:41]} 42. Nxb7 {[%clk 0:00:14]}  Bc2 {[%clk 0:00:38]} 43. Nd6 {[%clk 0:00:14]}  a5 {[%clk 0:00:36]} 44. c4 {[%clk 0:00:14]}  a4 {[%clk 0:00:34]} 45. c6 {[%clk 0:00:14]}  Bb3 {[%clk 0:00:32]} 46. Nf5+ {[%clk 0:00:13]}  Ke6 {[%clk 0:00:31]} 47. Rd3 {[%clk 0:00:13]}  a3 {[%clk 0:00:29]} 48. Rd6+ {[%clk 0:00:13]}  Kf7 {[%clk 0:00:28]} 49. Rd7+ {[%clk 0:00:14]}  Kf8 {[%clk 0:00:28]} 50. Rd8+ {[%clk 0:00:13]}  Kf7 {[%clk 0:00:26]} 51. Nd6+ {[%clk 0:00:12]}  Kg7 {[%clk 0:00:25]} 52. Ra8 {[%clk 0:00:12]}  a2 {[%clk 0:00:25]} 53. c5 {[%clk 0:00:12]}  a1=Q {[%clk 0:00:24]} 54. Rxa1 {[%clk 0:00:12]}  Rxa1 {[%clk 0:00:24]} 55. Nb7 {[%clk 0:00:12]}  Kf7 {[%clk 0:00:23]} 56. Kd7 {[%clk 0:00:10]}  Be6+ {[%clk 0:00:22]} 57. Kd6 {[%clk 0:00:10]}  Rd1+ {[%clk 0:00:20]} 58. Kc7 {[%clk 0:00:09]}  Ke7 {[%clk 0:00:21]} 59. Nd6 {[%clk 0:00:09]}  Rd3 {[%clk 0:00:19]} 60. Nb7 {[%clk 0:00:08]}  Rxh3 {[%clk 0:00:19]} 61. Kb6 {[%clk 0:00:06]}  Bxg4 {[%clk 0:00:17]} 62. Nd6 {[%clk 0:00:05]}  Rb3+ {[%clk 0:00:16]} 63. Ka7 {[%clk 0:00:04]}  Be6 {[%clk 0:00:15]} 64. c7 {[%clk 0:00:00]}  g4 {[%clk 0:00:15]} 0-1

[Event "December 5 Early 2023"]
[Site "https://www.chess.com"]
[Date "2023.12.05"]
[Round "5"]
[White "Tarasova, Viktoriya"]
[Black "Skiadopoulos, Nikolaos"]
[Result "1/2-1/2"]
[Board "198"]
[TimeControl "180+1"]
[WhiteFideId "4175840"]
[BlackFideId "4200772"]
[WhiteElo "2339"]
[BlackElo "1769"]
[WhiteTeam "RUS"]
[BlackTeam "GRE"]
[WhiteClock "0:00:19"]
[BlackClock "0:00:32"]

1. d4 {[%clk 0:03:00]}  Nf6 {[%clk 0:02:55]} 2. c4 {[%clk 0:03:00]}  c5 {[%clk 0:02:52]} 3. d5 {[%clk 0:03:00]}  b5 {[%clk 0:02:51]} 4. cxb5 {[%clk 0:03:00]}  a6 {[%clk 0:02:50]} 5. bxa6 {[%clk 0:03:00]}  e6 {[%clk 0:02:50]} 6. Nc3 {[%clk 0:02:57]}  Nxd5 {[%clk 0:02:49]} 7. Nxd5 {[%clk 0:02:56]}  exd5 {[%clk 0:02:49]} 8. Qxd5 {[%clk 0:02:56]}  Nc6 {[%clk 0:02:49]} 9. e4 {[%clk 0:02:49]}  Be7 {[%clk 0:02:49]} 10. Bc4 {[%clk 0:02:44]}  O-O {[%clk 0:02:48]} 11. Nf3 {[%clk 0:02:41]}  Bxa6 {[%clk 0:02:47]} 12. Bxa6 {[%clk 0:02:37]}  Qa5+ {[%clk 0:02:46]} 13. Qd2 {[%clk 0:02:00]}  Qxa6 {[%clk 0:02:41]} 14. Qe2 {[%clk 0:02:00]}  Nb4 {[%clk 0:02:24]} 15. Qxa6 {[%clk 0:01:54]}  Rxa6 {[%clk 0:02:22]} 16. O-O {[%clk 0:01:51]}  Nc2 {[%clk 0:02:16]} 17. Rb1 {[%clk 0:01:48]}  Rxa2 {[%clk 0:02:15]} 18. Rd1 {[%clk 0:01:44]}  d6 {[%clk 0:02:10]} 19. Bf4 {[%clk 0:01:43]}  Ra6 {[%clk 0:01:43]} 20. Rd2 {[%clk 0:01:43]}  Nb4 {[%clk 0:01:39]} 21. Rbd1 {[%clk 0:01:42]}  h6 {[%clk 0:01:31]} 22. Bxd6 {[%clk 0:01:33]}  Bxd6 {[%clk 0:01:30]} 23. Rxd6 {[%clk 0:01:33]}  Rxd6 {[%clk 0:01:19]} 24. Rxd6 {[%clk 0:01:32]}  Re8 {[%clk 0:01:19]} 25. e5 {[%clk 0:01:26]}  Ra8 {[%clk 0:01:09]} 26. h4 {[%clk 0:01:18]}  c4 {[%clk 0:01:01]} 27. h5 {[%clk 0:01:11]}  Nd3 {[%clk 0:00:55]} 28. Rb6 {[%clk 0:01:01]}  Ra1+ {[%clk 0:00:51]} 29. Kh2 {[%clk 0:01:02]}  Nxf2 {[%clk 0:00:48]} 30. Rb8+ {[%clk 0:00:58]}  Kh7 {[%clk 0:00:48]} 31. Rb7 {[%clk 0:00:54]}  Kg8 {[%clk 0:00:44]} 32. Kg3 {[%clk 0:00:50]}  Nd3 {[%clk 0:00:36]} 33. Rb8+ {[%clk 0:00:45]}  Kh7 {[%clk 0:00:35]} 34. Rb7 {[%clk 0:00:38]}  Kg8 {[%clk 0:00:34]} 35. Rb8+ {[%clk 0:00:18]}  Kh7 {[%clk 0:00:33]} 36. Rb7 {[%clk 0:00:19]}  Kg8 {[%clk 0:00:32]} 1/2-1/2

[Event "December 5 Early 2023"]
[Site "https://www.chess.com"]
[Date "2023.12.05"]
[Round "5"]
[White "Colonetti, Fabio"]
[Black "Teumer, Joerg, Dr."]
[Result "1-0"]
[Board "199"]
[TimeControl "180+1"]
[WhiteFideId "897612"]
[BlackFideId "4643526"]
[WhiteElo "2273"]
[BlackElo "2132"]
[WhiteTeam "ITA"]
[BlackTeam "GER"]
[WhiteClock "0:00:17"]
[BlackClock "0:00:00"]

1. e4 {[%clk 0:02:58]}  d5 {[%clk 0:02:53]} 2. exd5 {[%clk 0:02:56]}  Nf6 {[%clk 0:02:53]} 3. Bb5+ {[%clk 0:02:54]}  Bd7 {[%clk 0:02:52]} 4. Be2 {[%clk 0:02:52]}  Nxd5 {[%clk 0:02:50]} 5. Nf3 {[%clk 0:02:52]}  Bf5 {[%clk 0:02:49]} 6. O-O {[%clk 0:02:37]}  e6 {[%clk 0:02:47]} 7. a3 {[%clk 0:02:36]}  Be7 {[%clk 0:02:41]} 8. d4 {[%clk 0:02:36]}  O-O {[%clk 0:02:37]} 9. c4 {[%clk 0:02:36]}  Nf6 {[%clk 0:02:37]} 10. Nc3 {[%clk 0:02:35]}  c5 {[%clk 0:02:25]} 11. d5 {[%clk 0:02:31]}  exd5 {[%clk 0:02:25]} 12. cxd5 {[%clk 0:02:32]}  Bd6 {[%clk 0:02:05]} 13. Bg5 {[%clk 0:02:28]}  h6 {[%clk 0:02:02]} 14. Bh4 {[%clk 0:02:28]}  g5 {[%clk 0:02:00]} 15. Bg3 {[%clk 0:02:25]}  Bxg3 {[%clk 0:01:56]} 16. hxg3 {[%clk 0:02:26]}  Nbd7 {[%clk 0:01:45]} 17. Bd3 {[%clk 0:02:22]}  Bxd3 {[%clk 0:01:38]} 18. Qxd3 {[%clk 0:02:23]}  Re8 {[%clk 0:01:29]} 19. Qf5 {[%clk 0:02:22]}  Kg7 {[%clk 0:01:21]} 20. Rfe1 {[%clk 0:02:18]}  Qc7 {[%clk 0:00:55]} 21. Rad1 {[%clk 0:02:04]}  Rxe1+ {[%clk 0:00:55]} 22. Rxe1 {[%clk 0:02:03]}  a6 {[%clk 0:00:52]} 23. Re7 {[%clk 0:01:03]}  Qd6 {[%clk 0:00:45]} 24. Qe6 {[%clk 0:00:49]}  Qxe6 {[%clk 0:00:25]} 25. dxe6 {[%clk 0:00:48]}  Nb6 {[%clk 0:00:20]} 26. Rxf7+ {[%clk 0:00:48]}  Kg6 {[%clk 0:00:19]} 27. Rxb7 {[%clk 0:00:48]}  Nc4 {[%clk 0:00:19]} 28. b3 {[%clk 0:00:48]}  Nxa3 {[%clk 0:00:18]} 29. Ne5+ {[%clk 0:00:48]}  Kf5 {[%clk 0:00:18]} 30. Nf7 {[%clk 0:00:44]}  Kxe6 {[%clk 0:00:17]} 31. Nxh6 {[%clk 0:00:44]}  Rd8 {[%clk 0:00:15]} 32. g4 {[%clk 0:00:42]}  Rd3 {[%clk 0:00:11]} 33. Na4 {[%clk 0:00:42]}  Rd1+ {[%clk 0:00:11]} 34. Kh2 {[%clk 0:00:42]}  Rd2 {[%clk 0:00:11]} 35. Nxc5+ {[%clk 0:00:41]}  Kd5 {[%clk 0:00:11]} 36. Nd7 {[%clk 0:00:39]}  Rxf2 {[%clk 0:00:10]} 37. Nxf6+ {[%clk 0:00:34]}  Rxf6 {[%clk 0:00:10]} 38. Nf5 {[%clk 0:00:35]}  Nb5 {[%clk 0:00:06]} 39. Rg7 {[%clk 0:00:34]}  Ke4 {[%clk 0:00:03]} 40. Rxg5 {[%clk 0:00:33]}  Kf4 {[%clk 0:00:04]} 41. Rg8 {[%clk 0:00:32]}  Nc3 {[%clk 0:00:02]} 42. Rd8 {[%clk 0:00:26]}  Ne4 {[%clk 0:00:01]} 43. Rd4 {[%clk 0:00:18]}  Ke5 {[%clk 0:00:00]} 44. Ra4 {[%clk 0:00:17]} 1-0